Workbook

Sheet MAIN SHEET
A2: MAIN NIH R03 OR R21 MODULAR BUDGET SHEET
A3: PI name:
A4: Project title:
A5: Start date: | B5: =E8 -> 2016-07-01
A6: End date: | B6: =F9 -> 2018-06-30
A7: Cost of living % increase | B7: 0.03
D8: Start date | E8: 2016-07-01 | F8: =EDATE(E8,12) -> 2017-07-01 | K8: COST SHARE | L8: =E8 -> 2016-07-01 | M8: =F8 -> 2017-07-01
D9: End date | E9: =F8-1 -> 2017-06-30 | F9: =EDATE(E9,12) -> 2018-06-30 | L9: =E9 -> 2017-06-30 | M9: =F9 -> 2018-06-30
A10: Salaries (Name) | B10: Current salary | C10: Adj salary | D10: Effort % | E10: Year 1 | F10: Year 2 | H10: TOTAL | I10: Cal Mos. | K10: Salaries | L10: Year 1 | M10: Year 2 | O10: TOTAL | P10: Speedtype
B11: 0 | C11: =IF(B11>L35,L35,B11) -> 0 | D11: 0 | E11: =ROUND(C11*D11,0) -> 0 | F11: =IF(B11>L35,C11*D11,ROUND(E11*(1+B7),0)) -> 0 | H11: =SUM(E11:F11) -> 0 | I11: =D11*12 -> 0 | K11: =IF(B11>L35,A11,"") ->  | L11: =ROUND(IF(K11="",0,(ROUND(((B11-C11)*D11),0))),0) -> 0 | M11: =ROUND(L11*(1+B7),0) -> 0 | O11: =ROUND(SUM(L11:M11),0) -> 0
B12: 0 | C12: =IF(B12>L35,L35,B12) -> 0 | D12: 0 | E12: 0 | F12: =IF(B12>L35,C12*D12,ROUND(E12*(1+B7),0)) -> 0 | H12: 0 | I12: 0 | K12: =IF(B12>L35,A12,"") ->  | L12: 0 | M12: =ROUND(L12*(1+B7),0) -> 0 | O12: 0
B13: 0 | C13: =IF(B13>L35,L35,B13) -> 0 | D13: 0 | E13: 0 | F13: =IF(B13>L35,C13*D13,ROUND(E13*(1+B7),0)) -> 0 | H13: 0 | I13: 0 | K13: =IF(B13>L35,A13,"") ->  | L13: 0 | M13: =ROUND(L13*(1+B7),0) -> 0 | O13: 0
B14: 0 | C14: =IF(B14>L35,L35,B14) -> 0 | D14: 0 | E14: 0 | F14: =IF(B14>L35,C14*D14,ROUND(E14*(1+B7),0)) -> 0 | H14: 0 | I14: 0 | K14: =IF(B14>L35,A14,"") ->  | L14: 0 | M14: =ROUND(L14*(1+B7),0) -> 0 | O14: 0
B15: 0 | C15: =IF(B15>L35,L35,B15) -> 0 | D15: 0 | E15: 0 | F15: =IF(B15>L35,C15*D15,ROUND(E15*(1+B7),0)) -> 0 | H15: 0 | I15: 0 | K15: =IF(B15>L35,A15,"") ->  | L15: 0 | M15: =ROUND(L15*(1+B7),0) -> 0 | O15: 0
B16: 0 | C16: =IF(B16>L35,L35,B16) -> 0 | D16: 0 | E16: 0 | F16: =IF(B16>L35,C16*D16,ROUND(E16*(1+B7),0)) -> 0 | H16: 0 | I16: 0 | K16: =IF(B16>L35,A16,"") ->  | L16: 0 | M16: =ROUND(L16*(1+B7),0) -> 0 | O16: 0
B17: 0 | C17: =IF(B17>L35,L35,B17) -> 0 | D17: 0 | E17: 0 | F17: =IF(B17>L35,C17*D17,ROUND(E17*(1+B7),0)) -> 0 | H17: 0 | I17: 0 | K17: =IF(B17>L35,A17,"") ->  | L17: 0 | M17: =ROUND(L17*(1+B7),0) -> 0 | O17: 0
B18: 0 | C18: =IF(B18>L35,L35,B18) -> 0 | D18: 0 | E18: 0 | F18: =IF(B18>L35,C18*D18,ROUND(E18*(1+B7),0)) -> 0 | H18: 0 | I18: 0 | K18: =IF(B18>L35,A18,"") ->  | L18: 0 | M18: =ROUND(L18*(1+B7),0) -> 0 | O18: 0
B19: 0 | C19: =IF(B19>L35,L35,B19) -> 0 | D19: 0 | E19: 0 | F19: =IF(B19>L35,C19*D19,ROUND(E19*(1+B7),0)) -> 0 | H19: 0 | I19: 0 | K19: =IF(B19>L35,A19,"") ->  | L19: 0 | M19: =ROUND(L19*(1+B7),0) -> 0 | O19: 0
B20: 0 | C20: =IF(B20>L35,L35,B20) -> 0 | D20: 0 | E20: 0 | F20: =IF(B20>L35,C20*D20,ROUND(E20*(1+B7),0)) -> 0 | H20: 0 | I20: 0 | K20: =IF(B20>L35,A20,"") ->  | L20: 0 | M20: =ROUND(L20*(1+B7),0) -> 0 | O20: 0
A21: TOTALS | E21: =SUM(E11:E20) -> 0 | F21: =SUM(F11:F20) -> 0 | H21: 0 | K21: TOTALS | L21: =ROUND(SUM(L11:L20),0) -> 0 | M21: =ROUND(SUM(M11:M20),0) -> 0 | O21: 0
A22: Fringe benefits | C22: GRA | D22: Fringe % | E22: Year 1 | F22: Year 2 | H22: TOTAL | K22: Fringe benefits | L22: Year 1 | M22: Year 2 | O22: TOTAL | P22: Speedtype
A23: =IF(ISBLANK(A11),"",A11) ->  | D23: =IF(C23="GRA",0,L36) -> 0.285 | E23: =ROUND(IF(C23="GRA",L37,E11*D23),0) -> 0 | F23: =ROUND(IF(C23="GRA",E23*(1+B7),F11*D23),0) -> 0 | H23: =SUM(E23:F23) -> 0 | K23: =IF(ISBLANK(K11),"",K11) ->  | L23: =ROUND(L11*D23,0) -> 0 | M23: =ROUND(M11*D23,0) -> 0 | O23: =ROUND(SUM(L23:M23),0) -> 0 | P23: =IF(ISBLANK(P11),"",P11) -> 
A24: =IF(ISBLANK(A12),"",A12) ->  | D24: =IF(C24="GRA",0,L36) -> 0.285 | E24: =ROUND(IF(C24="GRA",L37,E12*D24),0) -> 0 | F24: =ROUND(IF(C24="GRA",E24*(1+B7),F12*D24),0) -> 0 | H24: 0 | K24: =IF(ISBLANK(K12),"",K12) ->  | L24: 0 | M24: 0 | O24: 0 | P24: =IF(ISBLANK(P12),"",P12) -> 
D25: =IF(C25="GRA",0,L36) -> 0.285 | E25: =ROUND(IF(C25="GRA",L37,E13*D25),0) -> 0 | F25: =ROUND(IF(C25="GRA",E25*(1+B7),F13*D25),0) -> 0 | H25: 0 | L25: 0 | M25: 0 | O25: 0
D26: =IF(C26="GRA",0,L36) -> 0.285 | E26: =ROUND(IF(C26="GRA",L37,E14*D26),0) -> 0 | F26: =ROUND(IF(C26="GRA",E26*(1+B7),F14*D26),0) -> 0 | H26: 0 | L26: 0 | M26: 0 | O26: 0
D27: =IF(C27="GRA",0,L36) -> 0.285 | E27: =ROUND(IF(C27="GRA",L37,E15*D27),0) -> 0 | F27: =ROUND(IF(C27="GRA",E27*(1+B7),F15*D27),0) -> 0 | H27: 0 | L27: 0 | M27: 0 | O27: 0
D28: =IF(C28="GRA",0,L36) -> 0.285 | E28: =ROUND(IF(C28="GRA",L37,E16*D28),0) -> 0 | F28: =ROUND(IF(C28="GRA",E28*(1+B7),F16*D28),0) -> 0 | H28: 0 | L28: 0 | M28: 0 | O28: 0
D29: =IF(C29="GRA",0,L36) -> 0.285 | E29: =ROUND(IF(C29="GRA",L37,E17*D29),0) -> 0 | F29: =ROUND(IF(C29="GRA",E29*(1+B7),F17*D29),0) -> 0 | H29: 0 | L29: 0 | M29: 0 | O29: 0
D30: =IF(C30="GRA",0,L36) -> 0.285 | E30: =ROUND(IF(C30="GRA",L37,E18*D30),0) -> 0 | F30: =ROUND(IF(C30="GRA",E30*(1+B7),F18*D30),0) -> 0 | H30: 0 | L30: 0 | M30: 0 | O30: 0
D31: =IF(C31="GRA",0,L36) -> 0.285 | E31: =ROUND(IF(C31="GRA",L37,E19*D31),0) -> 0 | F31: =ROUND(IF(C31="GRA",E31*(1+B7),F19*D31),0) -> 0 | H31: 0 | L31: 0 | M31: 0 | O31: 0
D32: =IF(C32="GRA",0,L36) -> 0.285 | E32: =ROUND(IF(C32="GRA",L37,E20*D32),0) -> 0 | F32: =ROUND(IF(C32="GRA",E32*(1+B7),F20*D32),0) -> 0 | H32: 0 | L32: 0 | M32: 0 | O32: 0
A33: TOTALS | E33: =SUM(E23:E32) -> 0 | F33: =SUM(F23:F32) -> 0 | H33: 0 | K33: TOTALS | L33: =ROUND(SUM(L23:L32),0) -> 0 | M33: =ROUND(SUM(M23:M32),0) -> 0 | O33: 0
A34: Equipment | E34: Year 1 | F34: Year 2 | H34: TOTAL
H35: =SUM(E35:F35) -> 0 | K35: NIH salary cap (1/15/15) | L35: 183300
H36: 0 | K36: Fringe benefit rate | L36: 0.285
H37: 0 | K37: GRA insurance | L37: 2466
H38: 0 | K38: GRA tuition | L38: 3894
H39: 0
H40: 0
A41: TOTALS | E41: =ROUND(SUM(E35:E40),0) -> 0 | F41: =ROUND(SUM(F35:F40),0) -> 0 | H41: =ROUND(SUM(E41:F41),0) -> 0
A42: Supplies | E42: Year 1 | F42: Year 2 | H42: TOTAL
E43: =ROUND(E101-E82-E83-E84-E86-E87-E88-SUBCONTRACTS!B50-E90-E91-E92,0) -> 150000 | F43: =ROUND(F101-F82-F83-F84-F86-F87-F88-SUBCONTRACTS!C50-F90-F91-F92,0) -> 125000 | H43: =ROUND(SUM(E43:F43),0) -> 275000
A44: TOTALS | E44: =ROUND(SUM(E43:E43),0) -> 150000 | F44: =ROUND(SUM(F43:F43),0) -> 125000 | H44: =ROUND(SUM(E44:F44),0) -> 275000
A45: Patient care costs | E45: Year 1 | F45: Year 2 | H45: TOTAL
H46: =ROUND(SUM(E46:F46),0) -> 0
H47: =ROUND(SUM(E47:F47),0) -> 0
H48: =ROUND(SUM(E48:F48),0) -> 0
H49: =ROUND(SUM(E49:F49),0) -> 0
A50: TOTALS | E50: =ROUND(SUM(E46:E49),0) -> 0 | F50: =ROUND(SUM(F46:F49),0) -> 0 | H50: =ROUND(SUM(E50:F50),0) -> 0
A51: Alterations/renovations | E51: Year 1 | F51: Year 2 | H51: TOTAL
H52: =ROUND(SUM(E52:F52),0) -> 0
H53: =ROUND(SUM(E53:F53),0) -> 0
A54: TOTALS | E54: =ROUND(SUM(E52:E53),0) -> 0 | F54: =ROUND(SUM(F52:F53),0) -> 0 | H54: =ROUND(SUM(E54:F54),0) -> 0
A55: Off-site rentals | E55: Year 1 | F55: Year 2 | H55: TOTAL
H56: =ROUND(SUM(E56:F56),0) -> 0
H57: =ROUND(SUM(E57:F57),0) -> 0
A58: TOTALS | E58: =ROUND(SUM(E56:E57),0) -> 0 | F58: =ROUND(SUM(F56:F57),0) -> 0 | H58: =ROUND(SUM(E58:F58),0) -> 0
A59: Subcontracts | E59: Year 1 | F59: Year 2 | H59: TOTAL
A60: =IF(ISBLANK(SUBCONTRACTS!B4),"",SUBCONTRACTS!B4) ->  | E60: =SUBCONTRACTS!B9 -> 0 | F60: =SUBCONTRACTS!C9 -> 0 | H60: =ROUND(SUM(E60:F60),0) -> 0
A61: =IF(ISBLANK(SUBCONTRACTS!B13),"",SUBCONTRACTS!B13) ->  | E61: =SUBCONTRACTS!B18 -> 0 | F61: =SUBCONTRACTS!C18 -> 0 | H61: 0
A62: =IF(ISBLANK(SUBCONTRACTS!B22),"",SUBCONTRACTS!B22) ->  | E62: =SUBCONTRACTS!B27 -> 0 | F62: =SUBCONTRACTS!C27 -> 0 | H62: 0
A63: =IF(ISBLANK(SUBCONTRACTS!B31),"",SUBCONTRACTS!B31) ->  | E63: =SUBCONTRACTS!B36 -> 0 | F63: =SUBCONTRACTS!C36 -> 0 | H63: 0
A64: =IF(ISBLANK(SUBCONTRACTS!B40),"",SUBCONTRACTS!B40) ->  | E64: =SUBCONTRACTS!B45 -> 0 | F64: =SUBCONTRACTS!C45 -> 0 | H64: 0
A65: TOTALS | E65: =ROUND(SUM(E60:E64),0) -> 0 | F65: =ROUND(SUM(F60:F64),0) -> 0 | H65: 0
A66: Travel | E66: Year 1 | F66: Year 2 | H66: TOTAL
E67: 0 | F67: 0 | H67: =ROUND(SUM(E67:F67),0) -> 0
H68: =ROUND(SUM(E68:F68),0) -> 0
H69: =ROUND(SUM(E69:F69),0) -> 0
H70: =ROUND(SUM(E70:F70),0) -> 0
A71: TOTALS | E71: =ROUND(SUM(E67:E70),0) -> 0 | F71: =ROUND(SUM(F67:F70),0) -> 0 | H71: =ROUND(SUM(E71:F71),0) -> 0
A72: Tuition | E72: Year 1 | F72: Year 2 | H72: TOTAL
A73: =COUNTIF(C23:C32,"GRA") -> 0 | E73: =ROUND(IF(A73>0,A73*L38,0),0) -> 0 | F73: =ROUND(IF(E73="","",E73*(1+B7)),0) -> 0 | H73: =ROUND(SUM(E73:F73),0) -> 0
A74: TOTALS | E74: =ROUND(SUM(E73),0) -> 0 | F74: =ROUND(SUM(F73),0) -> 0 | H74: =ROUND(SUM(E74:F74),0) -> 0
A75: Other expenses | E75: Year 1 | F75: Year 2 | H75: TOTAL
E76: 0 | F76: 0 | H76: =ROUND(SUM(E76:F76),0) -> 0
E77: 0 | F77: 0 | H77: =ROUND(SUM(E77:F77),0) -> 0
H78: =ROUND(SUM(E78:F78),0) -> 0
H79: =ROUND(SUM(E79:F79),0) -> 0
A80: TOTALS | E80: =ROUND(SUM(E76:E79),0) -> 0 | F80: =ROUND(SUM(F76:F79),0) -> 0 | H80: =ROUND(SUM(E80:F80),0) -> 0
A81: DETAILED BUDGET TOTALS | E81: Year 1 | F81: Year 2 | H81: TOTAL
A82: Salary | E82: =E21 -> 0 | F82: =F21 -> 0 | H82: =ROUND(SUM(E82:F82),0) -> 0
A83: Fringe | E83: =E33 -> 0 | F83: =F33 -> 0 | H83: 0
A84: Equipment | E84: =E41 -> 0 | F84: =F41 -> 0 | H84: 0
A85: Supplies | E85: =E44 -> 150000 | F85: =F44 -> 125000 | H85: 275000
A86: Patient care costs | E86: =E50 -> 0 | F86: =F50 -> 0 | H86: 0
A87: Alterations/renovations | E87: =E54 -> 0 | F87: =F54 -> 0 | H87: 0
A88: Off-site rentals | E88: =E58 -> 0 | F88: =F58 -> 0 | H88: 0
A89: Subcontracts | E89: =E65 -> 0 | F89: =F65 -> 0 | H89: 0
A90: Travel | E90: =E71 -> 0 | F90: =F71 -> 0 | H90: 0
A91: Tuition | E91: =E74 -> 0 | F91: =F74 -> 0 | H91: 0
A92: Other expenses | E92: =E80 -> 0 | F92: =F80 -> 0 | H92: 0
A93: DIRECT COST SUBTOTAL | E93: =ROUND(SUM(E82:E92),0) -> 150000 | F93: =ROUND(SUM(F82:F92),0) -> 125000 | H93: 275000 | O93: F/A calculations
O94: 2016-04-01 | P94: =(0.25*0.53)+(0.75*0.54) -> 0.5375
A95: MODIFIED TOTAL DIRECT COSTS | E95: =ROUND(SUM(E82+E83+E85+E90+E92+SUBCONTRACTS!B48),0) -> 150000 | F95: =ROUND(SUM(F82+F83+F85+F90+F92+SUBCONTRACTS!C48),0) -> 125000 | H95: =ROUND(SUM(E95:F95),0) -> 275000 | O95: 2016-05-01 | P95: =((2/12)*0.53)+((10/12)*0.54) -> 0.5383333333
A96: F/A RATE | E96: =IF(E8=O94,P94,IF(E8=O95,P95,IF(E8=O96,P96,IF(E8=O97,P97,0.54)))) -> 0.54 | F96: 0.54 | O96: 2016-06-01 | P96: =((1/12)*0.53)+((11/12)*0.54) -> 0.5391666667
A97: F&A SUBTOTAL | E97: =ROUND(E95*E96,0) -> 81000 | F97: =ROUND(F95*F96,0) -> 67500 | H97: =ROUND(SUM(E97:F97),0) -> 148500 | O97: 2016-07-01 | P97: 0.54
A99: TOTAL COSTS | E99: =ROUND(SUM(E93,E97),0) -> 231000 | F99: =ROUND(SUM(F93,F97),0) -> 192500 | H99: =ROUND(SUM(E99,F99),0) -> 423500
A101: TARGET ANNUAL DIRECT COSTS | E101: 150000 | F101: 125000 | H101: =SUM(E101:F101) -> 275000
A103: COMMENTS

Sheet SUBCONTRACTS
A2: SUBCONTRACTS PAGE
A3: Subcontract 1
A4: Institution
A5: Principal Investigator
B6: Year 1 | C6: Year 2 | E6: TOTAL
A7: Direct costs | E7: =SUM(B7:C7) -> 0
A8: Indirect costs | E8: =SUM(B8:C8) -> 0
A9: TOTALS | B9: =SUM(B7:B8) -> 0 | C9: =SUM(C7:C8) -> 0 | E9: =SUM(B9,C9) -> 0
A10: AMT INCLUDED IN UL F/A | B10: =IF(B9>25000,25000,B9) -> 0 | C10: =IF((B9+C9)<25000,C9,IF((25000-B9)<0,0,25000-B9)) -> 0
A12: Subcontract 2
A13: Institution
A14: Principal Investigator
B15: Year 1 | C15: Year 2 | E15: TOTAL
A16: Direct costs | E16: =SUM(B16:C16) -> 0
A17: Indirect costs | E17: =SUM(B17:C17) -> 0
A18: TOTALS | B18: =SUM(B16:B17) -> 0 | C18: =SUM(C16:C17) -> 0 | E18: =SUM(B18,C18) -> 0
A19: AMT INCLUDED IN UL F/A | B19: =IF(B18>25000,25000,B18) -> 0 | C19: =IF((B18+C18)<25000,C18,IF((25000-B18)<0,0,25000-B18)) -> 0
A21: Subcontract 3
A22: Institution
A23: Principal Investigator
B24: Year 1 | C24: Year 2 | E24: TOTAL
A25: Direct costs | E25: =SUM(B25:C25) -> 0
A26: Indirect costs | E26: =SUM(B26:C26) -> 0
A27: TOTALS | B27: =SUM(B25:B26) -> 0 | C27: =SUM(C25:C26) -> 0 | E27: =SUM(B27,C27) -> 0
A28: AMT INCLUDED IN UL F/A | B28: =IF(B27>25000,25000,B27) -> 0 | C28: =IF((B27+C27)<25000,C27,IF((25000-B27)<0,0,25000-B27)) -> 0
A30: Subcontract 4
A31: Institution
A32: Principal Investigator
B33: Year 1 | C33: Year 2 | E33: TOTAL
A34: Direct costs | E34: =SUM(B34:C34) -> 0
A35: Indirect costs | E35: =SUM(B35:C35) -> 0
A36: TOTALS | B36: =SUM(B34:B35) -> 0 | C36: =SUM(C34:C35) -> 0 | E36: =SUM(B36,C36) -> 0
A37: AMT INCLUDED IN UL F/A | B37: =IF(B36>25000,25000,B36) -> 0 | C37: =IF((B36+C36)<25000,C36,IF((25000-B36)<0,0,25000-B36)) -> 0
A39: Subcontract 5
A40: Institution
A41: Principal Investigator
B42: Year 1 | C42: Year 2 | E42: TOTAL
A43: Direct costs | E43: =SUM(B43:C43) -> 0
A44: Indirect costs | E44: =SUM(B44:C44) -> 0
A45: TOTALS | B45: =SUM(B43:B44) -> 0 | C45: =SUM(C43:C44) -> 0 | E45: =SUM(B45,C45) -> 0
A46: AMT INCLUDED IN UL F/A | B46: =IF(B45>25000,25000,B45) -> 0 | C46: =IF((B45+C45)<25000,C45,IF((25000-B45)<0,0,25000-B45)) -> 0
A48: TOTAL AMT INCLUDED IN UL F/A | B48: =SUM(B10,B19,B28,B37,B46) -> 0 | C48: =SUM(C10,C19,C28,C37,C46) -> 0 | E48: =SUM(B48:C48) -> 0
A49: TOTAL AMT EXCLUDED FROM UL F/A | B49: =SUM(B9,B18,B27,B36,B45)-B48 -> 0 | C49: =SUM(C9,C18,C27,C36,C45)-C48 -> 0 | E49: =SUM(B49:C49) -> 0
A50: TOTAL SUBCONTRACTOR DIRECT COSTS | B50: =SUM(B7,B16,B25,B34,B43) -> 0 | C50: 0 | E50: =SUM(B50:C50) -> 0
A51: TOTAL SUBCONTRACTOR INDIRECT COSTS | B51: 0 | C51: 0 | E51: =SUM(B51:C51) -> 0
A52: TOTAL SUBCONTRACTOR COSTS | B52: 0 | C52: 0 | E52: =SUM(B52:C52) -> 0

Sheet NIH 424 ITEMS
A2: NIH 424 ITEMS
A4: SF 424 (R&R) | K4: Cognizant Federal Agency | L4: DHHS, Louis Martillotti, 212-264-2069
A5: 11. Descriptive title | D5: ='MAIN SHEET'!B4 -> 0 | K5: Indirect Cost Agreement Date | L5: 2015-04-29
A6: 12. Project period | D6: =TEXT('MAIN SHEET'!B5, "mm/dd/yyyy")&" - "&TEXT('MAIN SHEET'!B6, "mm/dd/yyyy") -> 07/01/2016 - 06/30/2018
A7: 15a. Total federal funds requested | D7: ='MAIN SHEET'!H99 -> 423500 | K7: FACILITIES AND ADMINISTRATION (F&A) costs are requested and calculated in accordance with the University’s current Rate Agreement established with DHHS. An F&A rate of 53% MTDC is the applicable rate for on-campus sponsored research during the proposed project period effective 07/01/2015 – 06/30/2016 and is 54% effective 7/1/2016 – 06/30/2018.
A8: 15c. Total federal and non-federal funds | D8: =D7 -> 423500
A11: Budget period 1
A12: Start date | B12: End date | F12: Funds requested
A13: ='MAIN SHEET'!E8 -> 2016-07-01 | B13: ='MAIN SHEET'!E9 -> 2017-06-30 | C13: Direct costs less consortium F&A | F13: ='MAIN SHEET'!E93-SUBCONTRACTS!B51 -> 150000
A14: Consortium F&A | F14: =SUBCONTRACTS!B51 -> 0
A15: Total direct costs | F15: =SUM(F13:F14) -> 150000
C17: Indirect cost type | D17: Indirect cost rate (%) | E17: Indirect cost base ($) | F17: Funds requested | H17: F/A calculations
C18: MTDC | D18: =IF(OR(A13=H18,A13=H19,A13=H20),0.53,0.54) -> 0.54 | E18: =IF(A13=H18,'MAIN SHEET'!E95*J18,IF(A13=H19,'MAIN SHEET'!E95*J19,IF(A13=H20,'MAIN SHEET'!E95*J20,'MAIN SHEET'!E95))) -> 150000 | F18: =D18*E18 -> 81000 | H18: 2016-04-01 | I18: =(0.25*0.53)+(0.75*0.54) -> 0.5375 | J18: =3/12 -> 0.25 | K18: =1-J18 -> 0.75
C19: =IF(OR(A13=H18,A13=H19,A13=H20),"MTDC","") ->  | D19: =IF(OR(A13=H18,A13=H19,A13=H20),0.54,"") ->  | E19: =IF(A13=H18,'MAIN SHEET'!E95*K18,IF(A13=H19,'MAIN SHEET'!E95*K19,IF(A13=H20,'MAIN SHEET'!E95*(K20),0))) -> 0 | F19: =IF(E19=0,0,E19*D19) -> 0 | H19: 2016-05-01 | I19: =((2/12)*0.53)+((10/12)*0.54) -> 0.5383333333 | J19: =2/12 -> 0.1666666667 | K19: =1-J19 -> 0.8333333333
H20: 2016-06-01 | I20: =((1/12)*0.53)+((11/12)*0.54) -> 0.5391666667 | J20: =1/12 -> 0.08333333333 | K20: 0.9166666667
A21: Budget period 2 | H21: 2016-07-01 | I21: 0.54
A22: Start date | B22: End date | F22: Funds requested
A23: ='MAIN SHEET'!F8 -> 2017-07-01 | B23: ='MAIN SHEET'!F9 -> 2018-06-30 | C23: Direct costs less consortium F&A | F23: ='MAIN SHEET'!F93-SUBCONTRACTS!C51 -> 125000
A24: Consortium F&A | F24: =SUBCONTRACTS!C51 -> 0
A25: Total direct costs | F25: =SUM(F23:F24) -> 125000
C27: Indirect cost type | D27: Indirect cost rate (%) | E27: Indirect cost base ($) | F27: Funds requested
C28: MTDC | D28: ='MAIN SHEET'!F96 -> 0.54 | E28: ='MAIN SHEET'!F95 -> 125000 | F28: ='MAIN SHEET'!F97 -> 67500
A31: 1. Total Costs, Entire Project Period
A32: Section A, Total Direct Cost less Consortium F&A for Entire Project Period | F32: ='MAIN SHEET'!H93-SUBCONTRACTS!E51 -> 275000
A33: Section A, Total Consortium F&A for Entire Project Period | F33: =SUBCONTRACTS!E51 -> 0
A34: Section A, Total Direct Costs Entire Project Period | F34: ='MAIN SHEET'!H93 -> 275000
A35: Section B, Total Indirect Costs for Entire Project Period | F35: ='MAIN SHEET'!H97 -> 148500
A36: Section C, Total Direct and Indirect Costs (A+B) for Entire Project Period | F36: ='MAIN SHEET'!H99 -> 423500

Sheet ADDL NARR JUSTIF
A2: Additional Narrative Justification
A4: The following exclusions were applied to the F&A base calculations:
B5: Year 1 | C5: Year 2 | D5: Total
A6: Equipment ≥$5K per item | B6: ='MAIN SHEET'!E41 -> 0 | C6: ='MAIN SHEET'!F41 -> 0 | D6: =SUM(B6:C6) -> 0
A7: Alteration/Renovation ≥$100K | B7: ='MAIN SHEET'!E54 -> 0 | C7: ='MAIN SHEET'!F54 -> 0 | D7: 0
A8: Off-Site Rental | B8: ='MAIN SHEET'!E58 -> 0 | C8: ='MAIN SHEET'!F58 -> 0 | D8: 0
A9: Patient Care | B9: ='MAIN SHEET'!E50 -> 0 | C9: ='MAIN SHEET'!F50 -> 0 | D9: 0
A10: Subcontracts >$25,000 | B10: =SUBCONTRACTS!B49 -> 0 | C10: =SUBCONTRACTS!C49 -> 0 | D10: 0
A11: Tuition | B11: ='MAIN SHEET'!E74 -> 0 | C11: ='MAIN SHEET'!F74 -> 0 | D11: 0
A12: Total Exclusions | B12: =SUM(B6:B11) -> 0 | C12: =SUM(C6:C11) -> 0 | D12: 0
A14: Difference in modules: | B14: We are requesting an additional module in Year 1 because of additional experiments required.
A19: Save selection as a PDF
A20: 1) Click on the Highlight cells button above.
A21: 2) Click on File tab at the top left of this page.
A22: 3) Click on Save as Adobe PDF
A23: 4) Dialog box will open
A24: 5) In the top left, under Conversion Range, click Selection, then the Convert to PDF button
A25: 6) Follow the rest of the directions you're given.
A27: Copying to a Word document
A28: 1) Click on the Highlight cells button above.
A29: 2) Copy selection
A30: 3) Paste in a Word document

Sheet PCF BUDGET INFO
A2: PROPOSAL CLEARANCE FORM BUDGET PAGE INFO
A4: #18c Entire Proposed Budget Period
A5: =TEXT('MAIN SHEET'!B5, "mm/dd/yyyy")&" - "&TEXT('MAIN SHEET'!B6, "mm/dd/yyyy") -> 07/01/2016 - 06/30/2018
A7: #18d Requested from sponsor | D7: #18f UofL Cost Share | F7: Speedtypes
A8: Salary & wages | B8: ='MAIN SHEET'!H21 -> 0 | D8: Salary & wages | E8: ='MAIN SHEET'!O21 -> 0 | F8: =IF(ISBLANK('MAIN SHEET'!P11),"",CONCATENATE('MAIN SHEET'!P11&" ("&'MAIN SHEET'!K11&") ") &IF(ISBLANK('MAIN SHEET'!P12),"",CONCATENATE(", "&'MAIN SHEET'!P12&" ("&'MAIN SHEET'!K12&") ")) &IF(ISBLANK('MAIN SHEET'!P13),"",CONCATENATE(", "&'MAIN SHEET'!P13&" ("&'MAIN SHEET'!K13&") ")) &IF(ISBLANK('MAIN SHEET'!P14),"",CONCATENATE(", "&'MAIN SHEET'!P14&" ("&'MAIN SHEET'!K14&") ")) &IF(ISBLANK('MAIN SHEET'!P15),"",CONCATENATE(", "&'MAIN SHEET'!P15&" ("&'MAIN SHEET'!K15&") ")) &IF(ISBLANK('MAIN SHEET'!P16),"",CONCATENATE(", "&'MAIN SHEET'!P16&" ("&'MAIN SHEET'!K16&") ")) &IF(ISBLANK('MAIN SHEET'!P17),"",CONCATENATE(", "&'MAIN SHEET'!P17&" ("&'MAIN SHEET'!K17&") ")) &IF(ISBLANK('MAIN SHEET'!P18),"",CONCATENATE(", "&'MAIN SHEET'!P18&" ("&'MAIN SHEET'!K18&") ")) &IF(ISBLANK('MAIN SHEET'!P19),"",CONCATENATE(", "&'MAIN SHEET'!P19&" ("&'MAIN SHEET'!K19&") ")) &IF(ISBLANK('MAIN SHEET'!P20),"",CONCATENATE(", "&'MAIN SHEET'!P20&" ("&'MAIN SHEET'!K20&") ")) ) -> 
A9: Fringe benefits | B9: ='MAIN SHEET'!H33 -> 0 | D9: Fringe benefits | E9: ='MAIN SHEET'!O33 -> 0 | F9: =F8 -> 
A10: Equip ≥$5K per item | B10: ='MAIN SHEET'!H41 -> 0 | D10: Equip ≥$5K per item
A11: Alteration/Renovation ≥$100K | B11: ='MAIN SHEET'!H54 -> 0 | D11: Alteration/Renovation ≥$100K
A12: Subcontracts | B12: ='MAIN SHEET'!H65 -> 0 | D12: Subcontracts
A13: Supplies & expenses | B13: =SUM('MAIN SHEET'!H44,'MAIN SHEET'!H50,'MAIN SHEET'!H58,'MAIN SHEET'!H80) -> 275000 | D13: Supplies & expenses
A14: Travel | B14: ='MAIN SHEET'!H71 -> 0 | D14: Travel
A15: Tuition | B15: ='MAIN SHEET'!H74 -> 0 | D15: Tuition
A16: TOTAL Direct Costs | B16: =SUM(B8:B15) -> 275000 | D16: TOTAL Direct Costs | E16: =SUM(E8:E15) -> 0
A18: #18g Exclusions to TDC Base
A19: Equipment ≥$5K per item (190000) | B19: =B10 -> 0
A20: Alteration/Renovation ≥$100K (190000) | B20: =B11 -> 0
A21: Off-Site Rental (519000) | B21: ='MAIN SHEET'!H58 -> 0
A22: Patient Care (519000) | B22: ='MAIN SHEET'!H50 -> 0
A23: Subcontract amounts in excess of first $25K on each (519000) | B23: =SUBCONTRACTS!E49 -> 0
A24: Tuition (520000) | B24: =B15 -> 0
A25: Other
A26: Total Exclusions | B26: =SUM(B19:B25) -> 0
A27: Modified TDC Base (18e TDC minus 18h exclusions) | B27: =B16-B26 -> 275000
A29: TOTALS
A30: #18j F&A Indirect costs | B30: ='MAIN SHEET'!H97 -> 148500
A31: #18k Total Cost of Project | B31: ='MAIN SHEET'!H99 -> 423500
A33: #18l Budget Remarks
A34: =IF(('MAIN SHEET'!K11="")*AND('MAIN SHEET'!K12="")*AND('MAIN SHEET'!K13="")*AND('MAIN SHEET'!K134="")*AND('MAIN SHEET'!K15="")*AND('MAIN SHEET'!K16="")*AND('MAIN SHEET'!K17="")*AND('MAIN SHEET'!K18="")*AND('MAIN SHEET'!K19="")*AND('MAIN SHEET'!K20=""),"","1) The cost share is for the difference between the NIH salary cap and the actual salary for ")&IF('MAIN SHEET'!K11="","",'MAIN SHEET'!K11)&IF('MAIN SHEET'!K12="","",(", "&'MAIN SHEET'!K12))&IF('MAIN SHEET'!K13="","",(", "&'MAIN SHEET'!K13))&IF('MAIN SHEET'!K14="","",(", "&'MAIN SHEET'!K14))&IF('MAIN SHEET'!K15="","",(", "&'MAIN SHEET'!K15))&IF('MAIN SHEET'!K16="","",(", "&'MAIN SHEET'!K16))&IF('MAIN SHEET'!K17="","",(", "&'MAIN SHEET'!K17))&IF('MAIN SHEET'!K18="","",(", "&'MAIN SHEET'!K18))&IF('MAIN SHEET'!K19="","",(", "&'MAIN SHEET'!K19))&IF('MAIN SHEET'!K20="","",(", "&'MAIN SHEET'!K20)) -> 
A35: =IF('MAIN SHEET'!A104="","","2) "&'MAIN SHEET'!A104) -> 
A37: #19 Subcontracts to be issued
A38: Organization name | B38: PI/Contact name | E38: Current year | F38: Remain Years
A39: =IF(SUBCONTRACTS!B4="","",SUBCONTRACTS!B4) ->  | B39: =IF(SUBCONTRACTS!B5="","",SUBCONTRACTS!B5) ->  | E39: =IF(SUBCONTRACTS!B9=0,"",SUBCONTRACTS!B9) ->  | F39: =IF(SUBCONTRACTS!B4="","",SUBCONTRACTS!E9-SUBCONTRACTS!B9) -> 
A40: =IF(SUBCONTRACTS!B13="","",SUBCONTRACTS!B13) ->  | B40: =IF(SUBCONTRACTS!B14="","",SUBCONTRACTS!B14) ->  | E40: =IF(SUBCONTRACTS!B18=0,"",SUBCONTRACTS!B18) ->  | F40: =IF(SUBCONTRACTS!E18=0,"",SUBCONTRACTS!E18-SUBCONTRACTS!B18) -> 
A41: =IF(SUBCONTRACTS!B22="","",SUBCONTRACTS!B22) ->  | B41: =IF(SUBCONTRACTS!B23="","",SUBCONTRACTS!B23) ->  | E41: =IF(SUBCONTRACTS!B27=0,"",SUBCONTRACTS!B27) ->  | F41: =IF(SUBCONTRACTS!E27=0,"",SUBCONTRACTS!E27-SUBCONTRACTS!B27) -> 
A42: =IF(SUBCONTRACTS!B31="","",SUBCONTRACTS!B31) ->  | B42: =IF(SUBCONTRACTS!B32="","",SUBCONTRACTS!B32) ->  | E42: =IF(SUBCONTRACTS!B36=0,"",SUBCONTRACTS!B36) ->  | F42: =IF(SUBCONTRACTS!E36=0,"",SUBCONTRACTS!E36-SUBCONTRACTS!B36) -> 
A43: =IF(SUBCONTRACTS!B40="","",SUBCONTRACTS!B40) ->  | B43: =IF(SUBCONTRACTS!B41="","",SUBCONTRACTS!B41) ->  | E43: =IF(SUBCONTRACTS!B45=0,"",SUBCONTRACTS!B45) ->  | F43: =IF(SUBCONTRACTS!E45=0,"",SUBCONTRACTS!E45-SUBCONTRACTS!B45) -> 

Sheet INSTRUCTIONS
A2: PREPARATION
A3: Excel Tools Ad-Ins
A4: 1) On the Excel toolbar, click on Tools, then Add-ins, and make sure that Analysis ToolPak is checked. (This allows the dates at the top of the Main Sheet Years to be filled in automatically.)
A5: FORMATTING EXPLANATIONS
A6: Fillable areas
A7: Only the peach-colored cells can be filled in -- all other cells are calculated automatically.
A9: MAIN SHEET
A10: HEADER
A11: 1) PI name: fill in the Principal Investigator's name (e.g., Mike Burry, MD).
A12: 2) Project title: Fill in the title as it will be submitted to the NIH NO LONGER THAN 82 CHARACTERS (e.g., Impact of TB on HIV-infected patients).
A13: 3) Start date: leave blank -- will be filled in automatically below.
A14: 4) End date: leave blank -- will be filled in automatically below.
A15: 3) COL%: use the drop-down arrow to the right of this cell to select the cost-of-living allowance increase percentage that will be used (e.g., 3%). Note: standard is 3% and the NIH does not allow more than 3%.
A16: START AND END DATES
A17: 1) Year 1 start date: fill in the start date in mm/dd/yyyy format (e.g., 7/1/2010) and the remaining dates will be filled in automatically.
A18: SALARIES
A19: 1) Name: fill in the first name and last name of each person on the project (e.g., Mike Burry)
A20: 2) Current salary: Fill in this person's current Institutional Base Salary without decimals, which include supplemental pay, but excludes X-pays, VA salary and clinical salary (e.g., 90000).
A21: 3) Effort %: Enter the effort percentage this person will work on this project (e.g., if they will work 20%, enter 20). NOTE: do not use decimals as it's difficult to justify that to sponsors.
A22: 4) The Adj salary adjusts any salary over the NIH cap to the cap amount.
A23: 5) Years 1-5: These are calculated automatically based on the Adjusted Salary x the effort %, with a cost-of-living allowance added Years 2 and up.
A24: FRINGE BENEFITS
A25: 1) GRA: If this person is a Graduate Research Assistant, fill in GRA here and the Fringe % will automatically be set to 0 and the first year filled in based on the current GRA fringe amount.
A26: 2) Fringe benefit %: Fill in the fringe benefit % for this person (e.g., if you want to enter 28.5%, then fill in 28.5). Standard is 28.5% but you can override this amount if you want to use the person's actual fringe rate.
A27: COST SHARES
A28: 1) Speedtypes: Fill in the 5-character speedtype to be used for the cost share funding -- usually a letter plus 4 numbers, (e.g., P0021). CANNOT be a grant speedtype.
A29: EQUIPMENT
A30: 1) Equipment item: fill in the name of the piece of equipment or equipment system you are requesting from the sponsor (e.g., Electron microscope).
A31: 2) Equipment costs: fill in the cost of the equipment on this line, in the year it will be purchased. NOTE: equipment must be greater than $5,000, so if the equipment is less, list it in Other Expenses instead. You will get an error message if you try to enter less here.
A32: SUPPLIES
A33: Each cell is calculated automatically by taking the Target amount for that year and subtracting all other costs except subcontract indirect costs.
A34: PATIENT CARE COSTS
A35: 1) Patient care items: fill in the type of patient care cost (e.g., CT scans)
A36: 2) Patient care costs: fill in the costs of patient care costs for this year in this cell.
A37: ALTERATIONS/RENOVATIONS
A38: 1) Alteration/renovation item: fill in a short description of the renovation or building alteration (e.g., Hood installation).
A39: 2) Alteration/renovation costs: Fill in the amount of alteration or renovation costs for this year in this cell. NOTE: if total for each line is <$100,000, line will turn red as if less than $100,000 should be in the Other Expenses section.
A40: OFF-SITE RENTALS
A41: 1) Off-site rental item: fill in the description the of off-site rental cost (e.g., CTRB lobby rental)
A42: 2) Off-site rental costs: fill in the amount of off-site rental costs for this year in this cell.
A43: SUBCONTRACTS
A44: Each cell is filled in automatically based on information from the Subonctracts page.
A45: TRAVEL
A46: 1) Travel items: fill in the description the of each travel cost (e.g., PI to 1 national meeting).
A47: 2) Travel costs: fill in the amount of travel costs for this year in this cell.
A48: TUITION
A49: Tuition numbers and costs: automatically calculates the number of individuals requiring tuition support by taking the number of persons classified as GRA in the fringe section and multiplying that # by the amount of tuition listed on the References page.
A50: OTHER EXPENSES
A51: 1) Other expense items: fill in the description the of this other expense cost (e.g., Publications)
A52: 2) Other expense costs: fill in the amount of this other expense cost for this year in this cell.
A53: COMMENTS
A54: 1) Comments: Enter in comments about the budget, if needed (e.g., Burry will be promoted 8/10 so the base salary listed is the projected amount).
A55: SUBCONTRACTS
A56: EACH LISTING
A57: 1) Institution: fill in the name of the institution you will be subcontracting to (e.g., Brown University).
A58: 2) Principal Investigator: fill in the name of the PI at this subcontract site (e.g., Chris Meloni).
A59: 3) Direct costs: fill in the direct costs the subcontractee is charging for each year of the project.
A60: 4) Indirect costs: fill in the indirect costs the subcontractee is charging for each year of the project.
